Cogmind - Beta 13 X1 @@@ ROGUE MODE // 2023.06.25 @ 18:12:36 Player: cptwinky Result: Destroyed by L-41 Fighter with Axe Performance ------------- Evolutions (4) 2000 Regions Visited (13) 2600 Robots Destroyed (114) 570 Value Destroyed (3245) 3245 Prototype IDs (22) 440 Alien Tech Used (1) 200 Bonus (1140) 1140 TOTAL SCORE: 10195 Bonus ------- High Alert Combat Kills 334 Follower Combat Kills 673 Met Imprinter 300 Friendly Fire -167 Cogmind --------- Core Integrity 0/850 Matter 300/300 Energy 100/100 System Corruption 1% Temperature Cool (0) Movement Core (100) Ox1 Location -6/Factory Parts ------- > --- POWER (1) -------- (None) > --- PROPULSION (4) --- (None) > --- UTILITY (8) ------ Small Storage Unit Advanced Signal Interpreter Makeshift Hacking Suite Makeshift System Shield > --- WEAPON (2) ------- (None) > --- INVENTORY (8) ---- Improved Flight Unit Improved System Restoration Module Improved Trap Extractor (0/6) Heavy Ion Cannon CR-A16's Pointy Stick Peak State ------------ > --- POWER ------------ Micro Nuclear Core > --- PROPULSION ------- Improved Flight Unit Improved Cesium-ion Thruster Improved Cesium-ion Thruster Improved Cesium-ion Thruster > --- UTILITY ---------- Small Storage Unit Machine Analyzer Improved Sensor Array Advanced Signal Interpreter Improved Medium Armor Plating Makeshift Hacking Suite Improved Hacking Suite Improved Hacking Suite > --- WEAPON ----------- RU-N14's Throwing Claymores > --- INVENTORY -------- Nuclear Pulse Array Improved System Restoration Module Improved Trap Extractor Heavy Ion Cannon RU-N14's Throwing Claymores CR-A16's Pointy Stick [Rating: 62] Favorites ----------- Power Light Nuclear Core Engine Cooled Ion Engine Power Core Light Nuclear Core Propulsion Light Treads Treads Light Treads Leg Carbon-fiber Leg Wheel Wheel Flight Unit Improved Cesium-ion Thruster Utility Small Storage Unit Device Improved Sensor Array Storage Small Storage Unit Processor Advanced Targeting Computer Hackware Improved Hacking Suite Protection Improved Medium Armor Plating Weapon Light Cannon Energy Gun Medium Laser Energy Cannon Heavy Ion Cannon Ballistic Gun Subdweller Machine Gun Ballistic Cannon Light Cannon Launcher Grenade Launcher Special Weapon RU-N14's Throwing Claymores Impact Weapon Power Maul Slashing Weapon Ripper Piercing Weapon CR-A16's Pointy Stick Special Melee Weapon Datajack Build | -11 -10 -10 -10 -8 -8 -7 -7 -7 -7 -7 -7 -6 -6 ------- Run | Jun Mat Min Sub Mat Sto Fac Was Fac Low Low Zio Pro Fac Slots Evolved 8 | . . . . 4 . 2 . . . . . . 2 Power . | . . . . . . . . . . . . . . Propulsion 2 | . . . . 1 . 1 . . . . . . . Utility 6 | . . . . 3 . 1 . . . . . . 2 Weapon . | . . . . . . . . . . . . . . Parts Attached 149 | 2 14 4 22 20 18 7 1 14 4 . 3 12 28 Power 13 | . 1 . 5 1 2 . . 2 . . . 2 . Engine 8 | . 1 . 3 1 2 . . . . . . 1 . Core 5 | . . . 2 . . . . 2 . . . 1 . Reactor . | . . . . . . . . . . . . . . Propulsion 29 | 2 1 . 2 9 7 2 1 3 . . . . 2 Treads 11 | 2 1 . 1 4 3 . . . . . . . . Leg 6 | . . . . 5 . . . . . . . . 1 Wheel 1 | . . . 1 . . . . . . . . . . Hover . | . . . . . . . . . . . . . . Flight 11 | . . . . . 4 2 1 3 . . . . 1 Utility 42 | . 1 . 3 4 4 3 . 7 4 . . 4 12 Device 16 | . . . 3 . . 2 . 2 3 . . 2 4 Storage 4 | . . . . 2 1 . . 1 . . . . . Processor 6 | . . . . 1 1 . . 2 . . . 1 1 Hackware 6 | . . . . . 1 1 . . . . . 1 3 Protection 10 | . 1 . . 1 1 . . 2 1 . . . 4 Artifact . | . . . . . . . . . . . . . . Weapon 65 | . 11 4 12 6 5 2 . 2 . . 3 6 14 Energy Gun . | . . . . . . . . . . . . . . Energy Cannon 2 | . . . . . . . . . . . . 1 1 Ballistic Gun 6 | . 2 . 3 1 . . . . . . . . . Ballistic Cannon 18 | . 4 2 5 4 3 . . . . . . . . Launcher 11 | . 4 2 . 1 2 . . 1 . . . . 1 Special Weapon 10 | . 1 . . . . . . . . . 1 2 6 Impact Weapon 2 | . . . . . . 1 . 1 . . . . . Slashing Weapon 6 | . . . 4 . . 1 . . . . . . 1 Piercing Weapon 8 | . . . . . . . . . . . 1 3 4 Special Melee Weapon 2 | . . . . . . . . . . . 1 . 1 Unidentified Prototypes 5 | . . . 2 . . 1 . . . . 1 1 . Parts Lost 35 | . . . 3 . 15 4 . . . . . . 13 Power 5 | . . . 2 . 1 1 . . . . . . 1 Propulsion 12 | . . . . . 7 1 . . . . . . 4 Utility 10 | . . . . . 3 2 . . . . . . 5 Weapon 8 | . . . 1 . 4 . . . . . . . 3 Highest Loss Streak 13 | . . . 2 . 13 4 . . . . . . 4 To Critical Strikes . | . . . . . . . . . . . . . . Average Slot Usage (%) 92 | . 93 100 99 89 86 74 53 85 92 92 97 90 78 Engine 6 | . 14 14 7 6 8 6 . . . . . . . Core 5 | . . . 11 2 . . . 5 7 7 7 7 4 Treads 15 | . 28 28 25 9 20 . . . . . . . . Leg 3 | . . . . 17 . . . . . . . . 1 Flight 7 | . . . . . 6 20 23 27 30 30 30 30 19 Device 7 | . . . 12 9 6 5 . 8 8 7 7 5 3 Storage 10 | . 14 14 13 9 9 7 7 7 7 7 7 7 6 Processor 7 | . . . . 8 11 15 15 20 23 23 23 22 10 Hackware 1 | . . . . . 4 13 . . . . . . 20 Protection 5 | . 8 14 . 9 6 . . 7 6 7 7 7 3 Ballistic Gun 4 | . 4 . 12 1 . . . . . . . . . Ballistic Cannon 8 | . 16 27 5 16 13 . . . . . . . . Impact Weapon 1 | . . . . . . 3 7 6 7 7 3 . . Slashing Weapon 2 | . . . 8 . . . . . . . . . . Naked Turns . | . . . . . . . . . . . . . . Heaviest Build 115 | 12 17 17 35 115 115 15 8 22 22 22 23 26 26 Greatest Support 60 | 40 40 40 40 60 60 15 23 24 23 23 23 23 30 Greatest Overweight (x) 3 | . . . 1 3 1 1 . . . . . 1 1 Average Overweight (x) . | . . . . . . . . . . . . . . Largest Inventory Capacity 25 | 8 8 8 8 25 25 8 8 8 8 8 8 8 8 Average Capacity 9 | 8 8 8 8 13 20 8 8 8 8 8 8 8 8 Most Carried 25 | 6 8 8 8 25 25 6 7 8 8 8 8 8 8 Average Carried 8 | 6 7 7 7 12 19 3 6 7 7 7 7 7 6 Final Capacity 25 | 8 8 8 8 25 8 8 8 8 8 8 8 8 8 Final Carried 24 | 6 8 8 8 24 4 6 7 8 8 8 8 8 5 Class Distribution -------------------- 56% | Mutant 17% | Sprinter 15% | Scavenger-Mutant 5% | Hacker-Mutant 3% | Hacker-Scout Dominant Class ---------------- Mutant | -10/Materials Mutant | -10/Mines Mutant | -10/Subcaves Mutant | -8/Materials Commander-Mutant | -8/Storage Hacker-Mutant | -7/Factory Mutant | -7/Waste Sprinter | -7/Factory Sprinter | -7/Lower Caves Sprinter | -7/Lower Caves Sprinter | -7/Zion Sprinter | -6/Proximity Caves Hacker-Mutant | -6/Factory Resources | -11 -10 -10 -10 -8 -8 -7 -7 -7 -7 -7 -7 -6 -6 ----------- Run | Jun Mat Min Sub Mat Sto Fac Was Fac Low Low Zio Pro Fac Matter Collected 2642 | 214 388 135 509 510 217 . . 228 46 . 30 130 235 Remotely 10 | . . . . . . . . . 10 . . . . Salvage Created 3881 | . 576 82 262 562 152 . . 268 211 . . 251 1517 Parts 194 | . 29 12 19 27 14 . . 8 3 . . 4 78 Haulers Intercepted 13 | . 2 . . 6 1 . . 2 . . . . 2 Recyclers Shooed 4 | . 2 . . . . . . . . . . . 2 Parts Field Recycled . | . . . . . . . . . . . . . . Retrieved Matter . | . . . . . . . . . . . . . . Parts Self-Destructed 34 | . . . 18 . . . . . . 6 . 10 . Prevented . | . . . . . . . . . . . . . . Kills | -11 -10 -10 -10 -8 -8 -7 -7 -7 -7 -7 -7 -6 -6 ------- Run | Jun Mat Min Sub Mat Sto Fac Was Fac Low Low Zio Pro Fac Combat Hostiles Destroyed 72 | . 15 5 8 8 4 . . 4 . . . 5 23 Melee 4 | . . . . . . . . . . . . . 4 Guns 6 | . 2 . 4 . . . . . . . . . . Cannons 25 | . 5 . 4 8 2 . . . . . . . 6 AOE 37 | . 8 5 . . 2 . . 4 . . . 5 13 Classes Destroyed 17 | . 5 . 3 1 1 . . 1 1 . . . 5 Worker 8 | . . . . . . . . 1 . . . . 7 Builder 7 | . 2 . . 1 1 . . . . . . . 3 Hauler 13 | . 2 . . 6 1 . . 2 . . . . 2 Recycler 10 | . 2 . . 1 . . . 2 . . . . 5 Minesweeper 1 | . . . . . . . . . 1 . . . . Operator 3 | . . . . . 1 . . 2 . . . . . Swarmer 18 | . 6 3 2 . . . . 4 . . . . 3 Cutter 3 | . . . . . . . . . . . . . 3 Saboteur 1 | . . . . . . . . . . . . . 1 Grunt 31 | . 9 2 . 5 3 . . . . . . 3 9 Duelist 3 | . . . . 2 . . . . . . . 1 . Sentry 5 | . . . 1 1 1 . . . . . . 1 1 Hunter 4 | . . . . . . . . . . . . . 4 Programmer 1 | . . . . . . . . . . . . . 1 Heavy 1 | . . . . . . . . . . . . . 1 Artisan 2 | . . . 2 . . . . . . . . . . Subdweller 5 | . . . 5 . . . . . . . . . . Best Kill Streak 16 | . 3 3 2 4 6 . . 6 1 . . 3 16 Combat Bots Only 5 | . 3 3 2 3 4 . . 4 . . . 3 5 Max Kills in Single Turn 5 | . 3 3 1 2 2 . . 3 1 . . 2 5 Gunslinging . | . . . . . . . . . . . . . . Exploded 5 | . 2 3 . . 1 . . 3 . . . 2 5 Melee 1 | . . . . . . . . . . . . . 1 Uniques/NPCs Destroyed . | . . . . . . . . . . . . . . Combat | -11 -10 -10 -10 -8 -8 -7 -7 -7 -7 -7 -7 -6 -6 -------- Run | Jun Mat Min Sub Mat Sto Fac Was Fac Low Low Zio Pro Fac Damage Taken 6966 | . 219 31 674 359 2414 279 . 78 . 119 . 135 2658 Core 1629 | . 21 6 77 33 487 91 . 18 . 21 . 20 855 Absorbed by Shields . | . . . . . . . . . . . . . . Redirected to Shielding 19 | . 8 3 8 . . . . . . . . . . Regen/Repaired (Parts) 372 | . 62 . . . . 39 . . . . . . 271 Core Remaining (%) 60 | 100 . . 58 . 5 . . . . . . 78 . Volleys Fired 149 | . 31 5 30 40 11 . . 2 . . . 6 24 Largest 2 | . 2 2 2 2 2 . . 1 . . . 1 1 Hottest 100 | . 100 70 70 78 78 . . 39 . . . 65 65 Shots Fired 247 | . 52 7 60 79 17 . . 2 . . . 6 24 Gun 37 | . 8 . 27 2 . . . . . . . . . Cannon 165 | . 34 4 33 76 12 . . . . . . 2 4 Launcher 18 | . 7 3 . 1 5 . . 2 . . . . . Special 27 | . 3 . . . . . . . . . . 4 20 Kinetic 192 | . 38 4 60 78 12 . . . . . . . . Thermal 13 | . 7 . . . . . . . . . . 2 4 Explosive 42 | . 7 3 . 1 5 . . 2 . . . 4 20 Electromagnetic . | . . . . . . . . . . . . . . Robot Hit Streak 29 | . 6 2 29 11 13 . . . . . . 5 13 Robot Miss Streak 4 | . 2 2 2 2 2 . . . . . . . 4 Penetration Max . | . . . . . . . . . . . . . . Secondary Targets . | . . . . . . . . . . . . . . Shots Hit Robots 195 | . 24 3 52 52 9 . . 11 4 . 1 8 31 Core Hits 170 | . 28 6 15 24 18 . . 7 1 . . 12 59 Critical Kills . | . . . . . . . . . . . . . . Critical Parts Destroyed 2 | . . . . . . . . 1 1 . . . . Critical Strikes 17 | . 1 . 3 4 1 . . 1 1 . . 1 5 Destroy 1 | . . . 1 . . . . . . . . . . Blast 8 | . 1 . 2 4 1 . . . . . . . . Smash 2 | . . . . . . . . 1 1 . . . . Sever 6 | . . . . . . . . . . . . 1 5 Melee Attacks 147 | . . . 43 . . 1 . 27 16 15 2 8 35 Impact 60 | . . . . . . 1 . 27 16 15 1 . . Slashing 58 | . . . 43 . . . . . . . . . 15 Piercing 28 | . . . . . . . . . . . . 8 20 Sneak Attacks 16 | . . . 2 . . . . 5 1 . 1 . 7 Combat Hostiles 1 | . . . . . . . . . . . . . 1 Follow-up Attacks . | . . . . . . . . . . . . . . Damage Inflicted 11902 | . 999 253 1023 1259 634 . . 1115 335 . . 1346 4938 Guns 441 | . 49 . 392 . . . . . . . . . . Cannons 2135 | . 357 16 404 1180 151 . . . . . . . 27 Explosions 5875 | . 575 233 . . 460 . . 206 . . . 995 3406 Melee 2688 | . . . 227 . . . . 909 335 . . 204 1013 Ramming 132 | . 18 4 . 79 23 . . . . . . . 8 Kinetic 2537 | . 394 16 796 1180 151 . . . . . . . . Thermal 739 | . 12 . . . . . . . . . . . 727 Explosive 5098 | . 575 233 . . 460 . . 206 . . . 995 2629 Electromagnetic 77 | . . . . . . . . . . . . . 77 Impact 1244 | . . . . . . . . 909 335 . . . . Slashing 1615 | . . . 227 . . . . . . . . 147 1241 Piercing 460 | . . . . . . . . . . . . 204 256 Highest Corruption 2 | . 1 1 1 . 1 2 2 2 2 . . . 1 Average Corruption 1 | . 1 1 1 . 1 2 2 2 1 . . . 1 Corruption Purged 3 | . . . . . . . . . 2 . . . 1 Corruption Blocked 1 | . . . . . . . . 1 . . . . . Effects 60 | . 10 8 28 . 4 1 . 6 2 . . . 1 Message Errors 15 | . 4 1 5 . 1 . . 2 1 . . . 1 Matter Fused 13 | . 3 2 6 . 1 . . . 1 . . . . Heat Flow Errors 7 | . . 1 5 . . . . 1 . . . . . Energy Discharges 9 | . 1 . 6 . . 1 . 1 . . . . . Parts Rejected 1 | . . . 1 . . . . . . . . . . Data Loss (minor) 7 | . 1 3 3 . . . . . . . . . . Data Loss (major) 3 | . 1 . . . . . . 2 . . . . . Misfires 1 | . . . 1 . . . . . . . . . . Alerts 4 | . . 1 1 . 2 . . . . . . . . Overload Shots . | . . . . . . . . . . . . . . Overflow Damage 918 | . . . . 8 . . . 459 197 . . 13 241 Projectiles 47 | . . . . 8 . . . . . . . . 39 Explosions 173 | . . . . . . . . . . . . 2 171 Melee 698 | . . . . . . . . 459 197 . . 11 31 Knockbacks 24 | . 4 . 5 12 . . . 3 . . . . . Impact 4 | . . . . 1 . . . 3 . . . . . Kinetic 17 | . 4 . 4 9 . . . . . . . . . Secondary 3 | . . . 1 2 . . . . . . . . . Self-Inflicted Damage 532 | . 80 . . . . . . . . . . . 452 Shots 9 | . 4 . . . . . . . . . . . 5 Rammed 17 | . 7 3 . . 1 . . . . . . . 6 Targets Rammed 30 | . 8 3 . 12 1 . . . . . . . 6 Kicked 12 | . . . . 12 . . . . . . . . . Crushed 1 | . 1 . . . . . . . . . . . . Highest Temperature 237 | . 75 214 237 . 8 . . 182 . 46 . 65 12 Average Temperature 43 | . 20 72 101 . 5 . . 68 . 17 . 27 8 Received Heat Transfer 1463 | . 42 6 413 135 369 12 . 9 . 87 . 66 324 Siege Activations . | . . . . . . . . . . . . . . Robots Corrupted . | . . . . . . . . . . . . . . Combat Hostiles . | . . . . . . . . . . . . . . Parts Fried 9 | . . . . . . . . 7 2 . . . . Impact Corruptions 18 | . . . . . . . . 15 3 . . . . Robots Melted . | . . . . . . . . . . . . . . Combat Hostiles . | . . . . . . . . . . . . . . Parts Melted . | . . . . . . . . . . . . . . Heat Transferred 524 | . 37 . . . . . . . . . . . 487 Parts Sabotaged . | . . . . . . . . . . . . . . Parts Stolen . | . . . . . . . . . . . . . . Parts Stripped . | . . . . . . . . . . . . . . Power Chain Reactions 2 | . . . . . . 1 . . . . . . 1 Missiles Intercepted . | . . . . . . . . . . . . . . Alert | -11 -10 -10 -10 -8 -8 -7 -7 -7 -7 -7 -7 -6 -6 ------- Run | Jun Mat Min Sub Mat Sto Fac Was Fac Low Low Zio Pro Fac Peak Influence 1006 | . 354 331 . 276 320 244 115 485 . . . . 1006 Initial 102 | . . 102 . . 15 88 85 80 . . . . . Average 184 | . 204 150 . 112 132 121 103 245 . . . . 407 Maximum Alert Level 3 | . 1 1 . 1 1 1 . 2 . . . . 3 Low Security (%) 69 | 100 51 74 . 87 77 92 100 52 . . . . 34 Level 1 22 | . 48 25 . 12 22 7 . 29 . . . . 14 Level 2 5 | . . . . . . . . 18 . . . . 32 Level 3 2 | . . . . . . . . . . . . . 18 Level 4 . | . . . . . . . . . . . . . . Level 5 . | . . . . . . . . . . . . . . High Security . | . . . . . . . . . . . . . . Max Security . | . . . . . . . . . . . . . . Squads Dispatched 22 | . 4 . . . 2 1 . 4 . . . . 11 Investigation 10 | . 3 . . . . 1 . 3 . . . . 3 Extermination 2 | . . . . . . . . . . . . . 2 Reinforcement 5 | . 1 . . . . . . 1 . . . . 3 Assault 5 | . . . . . 2 . . . . . . . 3 Garrison . | . . . . . . . . . . . . . . Intercept . | . . . . . . . . . . . . . . Searches Triggered . | . . . . . . . . . . . . . . Construction Impeded . | . . . . . . . . . . . . . . Haulers Reinforced 1 | . . . . . . . . . . . . . 1 Active Scanning Responses . | . . . . . . . . . . . . . . Cargo Convoy Interrupts . | . . . . . . . . . . . . . . Stealth | -11 -10 -10 -10 -8 -8 -7 -7 -7 -7 -7 -7 -6 -6 --------- Run | Jun Mat Min Sub Mat Sto Fac Was Fac Low Low Zio Pro Fac Distress Signals 10 | . 2 . . 3 3 1 . . . . . . 1 Communications Jammed . | . . . . . . . . . . . . . . Distress Signals . | . . . . . . . . . . . . . . Times Spotted 183 | . 24 8 15 18 24 17 6 12 1 8 . 13 37 Peak Tracking Total 11 | . 5 3 2 4 6 11 6 5 1 5 . 4 6 Tactical Retreats 13 | . . . . 2 3 3 . 1 . 1 . . 3 Traps | -11 -10 -10 -10 -8 -8 -7 -7 -7 -7 -7 -7 -6 -6 ------- Run | Jun Mat Min Sub Mat Sto Fac Was Fac Low Low Zio Pro Fac Traps Triggered 5 | . 1 . . . 2 1 . . . . . . 1 Indirectly . | . . . . . . . . . . . . . . Trap Hack Attempts . | . . . . . . . . . . . . . . Triggered . | . . . . . . . . . . . . . . Disarmed 6 | . . . . . 6 . . . . . . . . Reprogrammed 1 | . 1 . . . . . . . . . . . . Reused 2 | . . . . . . . . . 2 . . . . Traps Extracted . | . . . . . . . . . . . . . . Installed 6 | . . 4 . . . . . . 2 . . . . Triggered 4 | . . 1 . . . . . . 2 . . 1 . Most Traps Carried 2 | . . 1 . . . . . . 2 . . . . Machines | -11 -10 -10 -10 -8 -8 -7 -7 -7 -7 -7 -7 -6 -6 ---------- Run | Jun Mat Min Sub Mat Sto Fac Was Fac Low Low Zio Pro Fac Machines Disabled 17 | . . . . 1 2 . . 1 . . . 1 12 Max in Single Turn 4 | . . . . . 1 . . 1 . . . 1 4 Garrison Access 2 | . . . . . . . . . . . . . 2 Machines Repaired . | . . . . . . . . . . . . . . Machines Sabotaged . | . . . . . . . . . . . . . . Overloaded Fab Kills 2 | . . . . . . 2 . . . . . . . Hacking | -11 -10 -10 -10 -8 -8 -7 -7 -7 -7 -7 -7 -6 -6 --------- Run | Jun Mat Min Sub Mat Sto Fac Was Fac Low Low Zio Pro Fac Machines Accessed 49 | . 7 . 2 9 7 7 . 7 . 1 . . 9 Terminals 27 | . 5 . . 6 6 4 . 3 . . . . 3 Fabricators 3 | . . . . . . 1 . . . . . . 2 Repair Stations 5 | . 1 . . . . 1 . 1 . . . . 2 Recycling Units 6 | . 1 . . 1 1 1 . 1 . . . . 1 Scanalyzers 3 | . . . . 2 . . . 1 . . . . . Garrison Access 2 | . . . . . . . . 1 . . . . 1 Total Hacks 148 | . 21 . 6 27 24 28 . 16 . 1 . . 25 Successful 91 | . 12 . 6 20 17 15 . 4 . 1 . . 16 Failed 57 | . 9 . . 7 7 13 . 12 . . . . 9 Catastrophic 10 | . 2 . . . 1 2 . 4 . . . . 1 Database Lockouts . | . . . . . . . . . . . . . . Manual 62 | . 17 . . 14 9 12 . 2 . . . . 8 Terminals 86 | . 17 . . 18 21 17 . 7 . . . . 6 Fabricators 10 | . . . . . . 2 . . . . . . 8 Repair Stations 19 | . 2 . . . . 7 . 3 . . . . 7 Recycling Units 14 | . 2 . . 2 3 2 . 2 . . . . 3 Scanalyzers 10 | . . . . 7 . . . 3 . . . . . Garrison Access 2 | . . . . . . . . 1 . . . . 1 Terminal Hacks 48 | . 8 . 6 11 11 6 . 2 . 1 . . 3 Record 5 | . . . 5 . . . . . . . . . . Part Schematic 4 | . 2 . . . 1 1 . . . . . . . Robot Schematic 1 | . . . . . 1 . . . . . . . . Robot Analysis 6 | . 3 . . 3 . . . . . . . . . Prototype ID Bank 3 | . 1 . . 1 1 . . . . . . . . Open Door 3 | . . . . . 2 . . . . 1 . . . Branch Access Points 2 | . . . . . . 1 . 1 . . . . . Fabricator Index 1 | . . . . . . . . . . . . . 1 Alert Level 3 | . . . . 2 . 1 . . . . . . . Unreport Threat 2 | . . . . 1 1 . . . . . . . . Locate Traps 8 | . 1 . . 1 3 2 . 1 . . . . . Disarm Traps 1 | . . . . . 1 . . . . . . . . Reprogram Traps 1 | . 1 . . . . . . . . . . . . Transport Status 1 | . . . . 1 . . . . . . . . . Hauler Manifests 1 | . . . . 1 . . . . . . . . . Registered Components 1 | . . . . . . . . . . . . . 1 Registered Prototypes 1 | . . . . . . . . . . . . . 1 Zone Layout 3 | . . . . 1 1 1 . . . . . . . Derelict Proto ID Bank 1 | . . . 1 . . . . . . . . . . Fabricator Hacks 3 | . . . . . . 1 . . . . . . 2 Network Status 1 | . . . . . . 1 . . . . . . . Load Schematic 1 | . . . . . . . . . . . . . 1 Build 1 | . . . . . . . . . . . . . 1 Repair Station Hacks 12 | . 2 . . . . 3 . 1 . . . . 6 Scan Component 6 | . 1 . . . . 1 . 1 . . . . 3 Repair 5 | . 1 . . . . 1 . . . . . . 3 Refit 1 | . . . . . . 1 . . . . . . . Recycling Unit Hacks 4 | . 1 . . 1 1 1 . . . . . . . Retrieve Matter 1 | . . . . 1 . . . . . . . . . Retrieve Components 3 | . 1 . . . 1 1 . . . . . . . Scanalyzer 7 | . . . . 6 . . . 1 . . . . . Insert Component 5 | . . . . 4 . . . 1 . . . . . Analyze 2 | . . . . 2 . . . . . . . . . Garrison Access Hacks 1 | . . . . . . . . . . . . . 1 Seal Access 1 | . . . . . . . . . . . . . 1 Unauthorized Hacks 16 | . 1 . . 2 5 4 . . . . . . 4 Terminals 8 | . . . . 1 4 2 . . . . . . 1 Track 1 | . . . . . 1 . . . . . . . . Assimilate 1 | . . . . . . 1 . . . . . . . Botnet 5 | . . . . 1 2 1 . . . . . . 1 Disrupt 1 | . . . . . 1 . . . . . . . . Fabricators 4 | . . . . . . 1 . . . . . . 3 Prioritize 1 | . . . . . . . . . . . . . 1 Liberate 2 | . . . . . . . . . . . . . 2 Overload 1 | . . . . . . 1 . . . . . . . Repair Stations . | . . . . . . . . . . . . . . Recycling Units 4 | . 1 . . 1 1 1 . . . . . . . Reject 3 | . . . . 1 1 1 . . . . . . . Tunnel 1 | . 1 . . . . . . . . . . . . Scanalyzers . | . . . . . . . . . . . . . . Garrison Access . | . . . . . . . . . . . . . . Data Cores Recovered 1 | . . . . . 1 . . . . . . . . Used . | . . . . . . . . . . . . . . Hacking Detections 39 | . 6 . . 9 4 6 . 7 . . . . 7 Full Trace Events 7 | . 1 . . . . . . 3 . . . . 3 Feedback Events 2 | . 1 . . . . . . 1 . . . . . Corruption 2 | . 1 . . . . . . 1 . . . . . Feedback Blocked . | . . . . . . . . . . . . . . Robot Schematics Acquired 1 | . . . . . 1 . . . . . . . . Robots Built . | . . . . . . . . . . . . . . Authchips . | . . . . . . . . . . . . . . Time . | . . . . . . . . . . . . . . Total Robot Build Rating . | . . . . . . . . . . . . . . Part Schematics Acquired 5 | . 1 . . 2 1 1 . . . . . . . Parts Built 1 | . . . . . . . . . . . . . 1 Authchips . | . . . . . . . . . . . . . . Time 42 | . . . . . . . . . . . . . 42 Total Part Build Rating 4 | . . . . . . . . . . . . . 4 Parts Repaired 4 | . 1 . . . . 1 . . . . . . 2 Time 197 | . 26 . . . . 51 . . . . . . 120 Parts Recycled . | . . . . . . . . . . . . . . Recycled Matter . | . . . . . . . . . . . . . . Retrieved Matter 247 | . . . . 247 . . . . . . . . . Retrieved Components 11 | . . . . . 10 1 . . . . . . . Parts Scanalyzed 3 | . . . . 2 . . . 1 . . . . . Part Schematics Acquired 2 | . . . . 2 . . . . . . . . . Parts Damaged . | . . . . . . . . . . . . . . Bothacking | -11 -10 -10 -10 -8 -8 -7 -7 -7 -7 -7 -7 -6 -6 ------------ Run | Jun Mat Min Sub Mat Sto Fac Was Fac Low Low Zio Pro Fac Used RIF Installer . | . . . . . . . . . . . . . . Robots Hacked 1 | . . . . . . . . . . . 1 . . Non-combat . | . . . . . . . . . . . . . . Combat 1 | . . . . . . . . . . . 1 . . Robot Hacks Applied 1 | . . . . . . . . . . . 1 . . parse_system 1 | . . . . . . . . . . . 1 . . Relay Couplers Released 2 | . . . . . . . . . . . . . 2 Machine Destruction 2 | . . . . . . . . . . . . . 2 Fabnet Peak Effective % . | . . . . . . . . . . . . . . Robots Rewired . | . . . . . . . . . . . . . . Allies Hacked . | . . . . . . . . . . . . . . Hacks Repelled . | . . . . . . . . . . . . . . Allies | -11 -10 -10 -10 -8 -8 -7 -7 -7 -7 -7 -7 -6 -6 -------- Run | Jun Mat Min Sub Mat Sto Fac Was Fac Low Low Zio Pro Fac Total Allies 29 | . . 3 8 . 12 1 . . . . 5 . . Largest Group 12 | . . 3 3 3 12 1 . . . . 5 5 . Highest-Rated Group 235 | . . 40 57 57 235 10 . . . . 135 135 . Highest-Rated Ally 31 | . . 16 19 19 31 10 . . . . 31 31 . Total Orders 3 | . . 2 . . 1 . . . . . . . . STAY 2 | . . 1 . . 1 . . . . . . . . FOLLOW 1 | . . 1 . . . . . . . . . . . Ally Attacks 178 | . . 5 37 46 48 . . . . . . 42 . Total Damage 2846 | . . 54 473 913 617 . . . . . . 789 . Kills 34 | . . 3 4 12 9 . . . . . . 6 . Allies Corrupted . | . . . . . . . . . . . . . . Allies Melted . | . . . . . . . . . . . . . . Intel | -11 -10 -10 -10 -8 -8 -7 -7 -7 -7 -7 -7 -6 -6 ------- Run | Jun Mat Min Sub Mat Sto Fac Was Fac Low Low Zio Pro Fac Robot Analysis Total 6 | . 3 . . 3 . . . . . . . . . Derelict Logs Recovered 9 | . . 1 1 . . . . . 2 1 1 3 . Drone Launches 2 | . . . . . . 2 . . . . . . . Drone Recoveries . | . . . . . . . . . . . . . . Exploration | -11 -10 -10 -10 -8 -8 -7 -7 -7 -7 -7 -7 -6 -6 ------------- Run | Jun Mat Min Sub Mat Sto Fac Was Fac Low Low Zio Pro Fac Turns Passed 11295 | 14 838 994 3815 1896 548 201 57 419 385 520 353 454 801 Spaces Moved 11195 | 7 415 588 2235 1055 375 345 142 864 1043 1127 836 1035 1128 Core 3 | . . . . . . . . . . . . . 3 Treads 3532 | 7 415 588 2102 275 145 . . . . . . . . Legs 891 | . . . . 769 . . . . . . . . 122 Wheels 144 | . . . 133 11 . . . . . . . . . Hover . | . . . . . . . . . . . . . . Flight 6625 | . . . . . 230 345 142 864 1043 1127 836 1035 1003 Fastest Speed 27 | 160 160 160 95 120 34 34 34 27 27 27 27 27 27 Average Speed 81 | 160 160 160 156 148 113 35 35 29 27 27 27 27 40 Slowest Speed 240 | 160 160 160 160 240 240 107 37 34 27 27 27 93 140 Overloaded Moves . | . . . . . . . . . . . . . . Propulsion Burnouts . | . . . . . . . . . . . . . . Robots Hopped 19 | . . . . . 8 5 . . . 1 . . 5 Cave-ins Triggered . | . . . . . . . . . . . . . . Exploration Rate (%) 64 | 2 71 98 96 53 63 10 99 21 93 93 86 87 27 Regions Visited 13 Branch Regions 7 Pre-discovered Areas 3 | . 1 1 . . . . . . . . 1 . . Known Exits Taken 6 | . . . . . 1 . . 1 1 1 1 1 . Unknown Exits Taken 5 | 1 1 1 1 1 . . . . . . . . . Scrap Searched 36 | . . 1 11 . . . . . 4 11 4 5 . Spaces Dug 105 | . 21 8 8 12 . 1 . 15 12 14 . 2 12 Terrain Destroyed 423 | . 60 19 8 16 35 1 . 45 12 14 . 66 147 Melee 64 | . . . 8 . . 1 . 15 12 14 . 2 12 Projectile 10 | . 3 . . 4 . . . . . . . 1 2 AOE 349 | . 57 19 . 12 35 . . 30 . . . 63 133 Terrain Rammed . | . . . . . . . . . . . . . . Walls Destroyed . | . . . . . . . . . . . . . . Machines Disabled . | . . . . . . . . . . . . . . Actions | -11 -10 -10 -10 -8 -8 -7 -7 -7 -7 -7 -7 -6 -6 --------- Run | Jun Mat Min Sub Mat Sto Fac Was Fac Low Low Zio Pro Fac Total 12869 | 9 524 635 2432 1314 469 419 147 975 1115 1311 963 1185 1371 Wait 1018 | 1 42 18 87 125 64 59 4 48 39 169 111 111 140 Move 11147 | 6 414 587 2234 1054 358 337 141 863 1042 1124 835 1034 1118 Hop 17 | . . . . . 8 3 . . . 1 . . 5 Pick Up 88 | . 8 7 5 32 3 3 . 10 5 1 4 5 5 Fast Attach 49 | . 2 . 10 8 . 4 1 3 2 . 2 4 13 Attach 39 | . 2 . 1 1 15 2 . 4 . . 1 4 9 Detach 23 | . 1 . 1 4 . 5 1 . . . 2 2 7 Swap 62 | 2 10 4 11 11 3 1 . 7 2 . . 5 6 Drop 91 | . 6 7 10 24 6 4 . 11 7 1 6 6 3 Fire 149 | . 31 5 30 40 11 . . 2 . . . 6 24 Melee 147 | . . . 43 . . 1 . 27 16 15 2 8 35 Ram 6 | . . . . . . . . . . . . . 6 Kick 12 | . . . . 12 . . . . . . . . . Crush 12 | . 8 3 . . 1 . . . . . . . . Escape Stasis . | . . . . . . . . . . . . . . Rewire . | . . . . . . . . . . . . . . Trap 6 | . . 4 . . . . . . 2 . . . . Miscellaneous 3 | . . . . 3 . . . . . . . . . Route ------- -11/Junkyard -10/Materials (discovered 3 exits: [*Mat x2] / [*Min]) -10/Mines (discovered 3 exits: [*Mat x2] / *Sub) -10/Subcaves (discovered 2 exits: [*Mat] / *Mat) -8/Materials -8/Storage -7/Factory (discovered 2 exits: Low x2) -7/Waste -7/Factory (discovered 2 exits: *Low x2) -7/Lower Caves -7/Lower Caves (discovered 2 exits: *Fac / *Zio) -7/Zion -6/Proximity Caves -6/Factory (discovered 2 exits: *Low x2) History --------- Turn | Location | Event 5 | -11/Junkyard | Discovered new exit (range 3) 15 | -11/Junkyard | Entered Materials 235 | -10/Materials | Discovered new exit (range 16) 331 | -10/Materials | Build established: Mutant 750 | -10/Materials | Discovered new exit (range 9) 799 | -10/Materials | Repaired Lgt. Treads 828 | -10/Materials | Discovered new exit (range 16) 853 | -10/Materials | Entered Mines 858 | -10/Mines | Discovered new exit (range 11) 908 | -10/Mines | A weapon hastily lodged in a ceiling crevice suddenly fell to the ground 1054 | -10/Mines | Assisted by bots powering up and referring to "LRC-V3" 1174 | -10/Mines | Learned location of Zion (-7) 1243 | -10/Mines | Discovered new exit (range 9) 1246 | -10/Mines | Found a hidden stash of uninstalled traps 1578 | -10/Mines | Discovered new exit (range 9) 1742 | -10/Mines | Received a Rocket Launcher from a helpful Derelict 1847 | -10/Mines | Entered Subcaves 1847 | -10/Subcaves | Accompanied by 3 allies 2049 | -10/Subcaves | A Subdweller sparked back to life 2049 | -10/Subcaves | A Subdweller sparked back to life 2077 | -10/Subcaves | Found Prototype Device 2077 | -10/Subcaves | Identified Power Bank 2079 | -10/Subcaves | Attached Power Bank, gained temporary slots: Power x3 2390 | -10/Subcaves | Visited Clippyterm 2394 | -10/Subcaves | Learned Research machine intel 2394 | -10/Subcaves | Learned Factory stockpile data 2428 | -10/Subcaves | Build established: Scavenger-Mutant 2574 | -10/Subcaves | Visited 4L-MR0's lab 3043 | -10/Subcaves | Visited triangular shrine 3053 | -10/Subcaves | Found Prototype Device 3053 | -10/Subcaves | Identified V3-11A's Pendant 3058 | -10/Subcaves | Befriended Subdweller 3178 | -10/Subcaves | Learned Materials emergency access door positions 3218 | -10/Subcaves | Befriended Subdweller 3359 | -10/Subcaves | Build established: Mutant 3451 | -10/Subcaves | Ambushed by Subdweller buried in earth 3453 | -10/Subcaves | Befriended Subdweller 3739 | -10/Subcaves | A swath of the cavern ceiling suddenly collapsed 3803 | -10/Subcaves | Shifting Twisted Machinery released Sub. Beam Cannon 3834 | -10/Subcaves | Approached by friendly Subdweller 3982 | -10/Subcaves | Shifting Twisted Machinery released Scrap Shield 3983 | -10/Subcaves | Shifting Twisted Machinery released Battle Rifle 4078 | -10/Subcaves | Shifting Twisted Machinery released Sub. Laser 4114 | -10/Subcaves | Shifting Twisted Machinery released Scrap Shield 4173 | -10/Subcaves | Shifting Twisted Machinery released Sub. Beam Cannon 4188 | -10/Subcaves | Befriended Subdweller 4193 | -10/Subcaves | Befriended Subdweller 4374 | -10/Subcaves | Discovered new exit (range 14) 4389 | -10/Subcaves | Discovered new exit (range 12) 5063 | -10/Subcaves | Befriended Subdweller 5093 | -10/Subcaves | Befriended Subdweller 5662 | -10/Subcaves | Entered Materials 5662 | -8/Materials | Accompanied by 3 allies 5662 | -8/Materials | Evolved 4 slots: Propulsion x1, Utility x3 5668 | -8/Materials | Discovered new exit (range 11) 7211 | -8/Materials | Build established: Scavenger-Mutant 7558 | -8/Materials | Entered Storage 7731 | -8/Storage | Assisted by bots powering up and referring to "LRC-V3" 7908 | -8/Storage | Met a pair of Derelict thieves 7970 | -8/Storage | Core integrity fell below 50% 8005 | -8/Storage | Lost 13 parts (1p6n2u4w) 8073 | -8/Storage | Core integrity fell below 20% 8103 | -8/Storage | Discovered new exit (range 9) 8105 | -8/Storage | Identified exit to Factory 8106 | -8/Storage | Entered Factory 8106 | -7/Factory | Evolved 2 slots: Propulsion x1, Utility x1 8181 | -7/Factory | Identified exit to Lower Caves 8246 | -7/Factory | Repaired Imp. Flight Unit 8307 | -7/Factory | Manually triggered Chute Trap 8307 | -7/Factory | Sucked down chute 8307 | -7/Factory | Entered Waste 8326 | -7/Waste | Spotted C-40 Crusher 8329 | -7/Waste | Spotted C-40 Crusher 8330 | -7/Waste | Spotted C-40 Crusher 8331 | -7/Waste | Spotted C-40 Crusher 8335 | -7/Waste | Spotted C-40 Crusher 8336 | -7/Waste | Lost 4 parts (1p1n2u) 8338 | -7/Waste | Spotted C-40 Crusher 8356 | -7/Waste | Discovered new exit (range 11) 8363 | -7/Waste | Identified exit to Factory 8364 | -7/Waste | Entered Factory 8764 | -7/Factory | Build established: Sprinter 8783 | -7/Factory | Entered Lower Caves 8892 | -7/Lower Caves | Learned 4 Factory zone layouts 8979 | -7/Lower Caves | Identified exit to Lower Caves 9168 | -7/Lower Caves | Entered another Lower Caves area 9172 | -7/Lower Caves | Discovered new exit (range 5) 9220 | -7/Lower Caves | Encountered a Warlord checkpoint 9419 | -7/Lower Caves | Spotted B-75 Beast 9431 | -7/Lower Caves | Ambushed by wild Derelicts 9539 | -7/Lower Caves | Discovered new exit (range 6) 9541 | -7/Lower Caves | Learned Factory security intel 9688 | -7/Lower Caves | Identified exit to Zion 9688 | -7/Lower Caves | Entered Zion 9707 | -7/Zion | Discovered new exit (range 16) 9717 | -7/Zion | Found Prototype Special Weapon 9717 | -7/Zion | Identified RU-N14's Throwing Claymores 9719 | -7/Zion | Found RU-N14's Throwing Claymores 9762 | -7/Zion | Gained Derelict followers 9785 | -7/Zion | Acquired unknown access codes intercepted by a Zionite 9849 | -7/Zion | Learned location of Armory (-3) 9869 | -7/Zion | Found CR-A16's Pointy Stick 9930 | -7/Zion | Found RU-N14's Throwing Claymores 9939 | -7/Zion | Identified exit to Proximity Caves 10041 | -7/Zion | Entered Proximity Caves 10041 | -6/Proximity Caves | Accompanied by 5 allies 10178 | -6/Proximity Caves | Attracted the attention of an 0b10 checkpoint 10245 | -6/Proximity Caves | Learned Factory terminal intel 10313 | -6/Proximity Caves | Found Alien Artifact 10337 | -6/Proximity Caves | Identified Dimensional Node Initializer 10337 | -6/Proximity Caves | Initialized slip node 10430 | -6/Proximity Caves | Discovered new exit (range 5) 10439 | -6/Proximity Caves | Learned Factory emergency access door positions 10446 | -6/Proximity Caves | Learned Factory stockpile data 10475 | -6/Proximity Caves | Identified exit to Factory 10495 | -6/Proximity Caves | Entered Factory 10495 | -6/Factory | Evolved 2 slots: Utility x2 10500 | -6/Factory | Loaded intel: 26 terminal locations 10555 | -6/Factory | Discovered new exit (range 5) 10556 | -6/Factory | Identified exit to Lower Caves 10579 | -6/Factory | Repaired Nuclear Pulse Array? 10609 | -6/Factory | Repaired Imp. Medium Armor Plating? 10719 | -6/Factory | Discovered exit to Lower Caves (range 6) 10792 | -6/Factory | Build established: Hacker-Scout 10974 | -6/Factory | Fabricated Mak. System Shield (x1) 11143 | -6/Factory | Core integrity fell below 50% 11179 | -6/Factory | Lost 4 parts (1p2n1w) 11181 | -6/Factory | Build established: Hacker-Mutant 11195 | -6/Factory | First assault squad dispatched 11259 | -6/Factory | Core integrity fell below 20% 11296 | -6/Factory | Destroyed by L-41 Fighter with Axe Last Messages --------------- 11282_ Y-54 Guardian Imp. Light Armor Plating severed. 11283_ K-01 Serf collects debris. 11284_ Imp. Cesium-ion Thruster destroyed. 11287_ K-01 Serf collects debris. 11287_ Greatsword destroyed. 11288_ Slammed into Y-54 Guardian. 11289_ C-30 ARC bursts open, deploying its payload. 11289_ G-67 Veteran unfolds itself. 11289_ G-50 Soldier unfolds itself. 11289_ L-41 Fighter unfolds itself. 11289_ M-28 Smith unfolds itself. 11290_ Slammed into Y-54 Guardian. 11290_ Y-54 Guardian destroyed. 11290_ R-10 Processor collects Flak Gun. 11291_ K-01 Serf collects debris. 11293_ R-10 Processor collects Imp. Deuterium Engine. 11293_ K-01 Serf collects debris. 11294_ Slammed into L-41 Fighter. 11295_ ALERT: Rogue bot located, Programmers report to Factory Zone 8M. 11295_ Slammed into L-41 Fighter. Map ----- +----------------------------------------------------+ | ????????????????????????????????????????# ## | | ?????????????+??????????????????????????# [#? | | ????????????????????????????????????????# ==*#? | | ????????????????????????????????????????# *%[#? | | ???????????????????????? ?????????????# #####%#? | | ?????????????????????? ?????????????# #?###"## | | ?????????????""??????# ?????????????# #?#!/=%= | | ?????????????"T??????# ??????######## #?#!%! | | ?????????????""??????# #?????# ## ###![! | | ?????????????????????# #?????# "=*= | | ?????????????????????# #?????# " | | ?????????????????????# k #?????# " | | ?????????????????????# #?????# #### " | | ?????????????????????# #?????## #####+# | | ?????????????????????# #??????# # # | | ????????????????????##A ##?????# + ###### | | ????????????????????# #?????# # #????? | | ????????????????????# ####### # / #????? | | ????????????????????# % !!%!!= # #????? | | ????????????????????+ != !!!!= # #????? | | ????????????????????# [%% !!! # #????? | | ????????????????????# = ######## ## #????? | | ????????????????????# #??????# ########????? | | ????????????????????### l ##########+#???????????? | | ??????????????????????# m%# ???????????? | | ??????????????????????# @/ """"???????????????? | | ??????????????????????# l# """"???????????????? | | ??????????????????????# # """"???????????????? | | ??????????????????????#gg #? """"???????????????? | | ??????????????????????# % #? ???????????????? | | ??????????????????????# #?? """"???????????????? | | ??????????????????????# #???"""""??????????????? | | ??????????????????????# #???""" ???????????????? | | ??????????????????????# #??????????????????????? | | ??????????????????????# #??????????????????????? | | ??????????????????????# #??????????????????????? | | ??????????????????????# #??????????????????????? | | ??????????????????????# ???????????????????????? | | ?????????????????????? ???????????????????????? | | ?????????????????????? ???????????????????????? | | ??????????????????????? Y ???????????????????????? | | ?????????????????????????????????????????????????? | | ?????????????????????????????????????????????????? | | ????### #????????#######?????????????????????? | | ???? # #################????????????????????? | | ???? # ????????????????????? | | ???? # ????????????????????? | | ????" + ????????????????????? | | ????" # ????????????????????? | | ????" # ????????????????????? | +----------------------------------------------------+ Best States ------------- Heat Dissipation 45 Energy Generation 20 Energy Capacity 510 Matter Stores 300 Matter Capacity 300 Sight Range 16 Robot Scan Range 15 Terrain Scan Density 10 Corruption Block 8 Armor Coverage 800 Propulsion Shielding 33 Evasion (%) 64 Targeting Accuracy 8 Recoil Reduction 3 Offensive Hacking 35 Defensive Hacking 11 Item Schematics ----------------- Huge Storage Unit | -10/Materials | Hacked Mak. System Shield | -8/Materials | Scanalyzed Imp. Flight Unit | -8/Materials | Scanalyzed Hrd. Medium Armor Plating | -8/Storage | Hacked Lgt. Armored Exoskeleton | -7/Factory | Hacked Robot Schematics ------------------ G-47 Trooper | -8/Storage | Hacked Fabricated ------------ Mak. System Shield | x1 | -6/Factory Alien Tech Used ----------------- Dimensional Node Initializer Achievements -------------- None Challenges ------------ None Game ------ Seed HypercooledAssemblyPurifier Manual? 0 Play Time 01:32:15 Cumulative 1307.0 hours Start 2023.06.25 @ 12:58:48 End 2023.06.25 @ 18:12:36 Sessions 3 Manual Loads 0 Difficulty Rogue Special Mode None Game No. 946 Rogue 942 Adventurer 4 Explorer 0 Win Type - Total 149 Types 111/10/10/6/2/1/1/5/3 Lore% 95 Gallery% 97 Achievement% 98 Wizard Run 0 Options --------- ASCII 0 Keyboard 1 Movement Vi Keybinds 0 Fullscreen 0 Font 20/X11 Map View 76x50 Tactical HUD 1 Map Filters NONE Filters NONE Steam 1 RUN: 3c9c32b7-ac2a-4056-84bd-145740728918